Cogmind - Beta 15 @@@ ROGUE MODE // 2025.09.11 @ 11:20:45 Player: lepire Result: Destroyed by NX-JC5(R) with Subdweller Laser Performance ------------- Evolutions (0) 0 Regions Visited (2) 400 Robots Destroyed (27) 135 Value Destroyed (547) 547 Prototype IDs (2) 40 Alien Tech Used (0) 0 Bonus (0) 0 TOTAL SCORE: 1122 Bonus ------- None Cogmind --------- Core Integrity 0/250 Matter 65/300 Energy 100/100 System Corruption 8% Temperature Cool (6) Movement Core (250) Ox4 Location -10/Subcaves Parts ------- > --- POWER (1) -------- (None) > --- PROPULSION (2) --- (None) > --- UTILITY (2) ------ Small Storage Unit Medium Storage Unit > --- WEAPON (2) ------- (None) > --- INVENTORY (10) --- Ion Engine Light Ion Engine Structural Scanner Sensor Array Improved Targeting Computer Autogun Mining Laser Peak State ------------ > --- POWER ------------ Light Nuclear Core > --- PROPULSION ------- Aluminum Leg Compact Wheel > --- UTILITY ---------- Small Storage Unit Medium Storage Unit > --- WEAPON ----------- Autogun Light Cannon > --- INVENTORY -------- Ion Engine Light Ion Engine Structural Scanner Sensor Array Improved Targeting Computer Autogun Grenade Launcher Mining Laser [Rating: 11] Favorites ----------- Power Light Ion Engine Engine Light Ion Engine Power Core Light Nuclear Core Propulsion Aluminum Leg Leg Aluminum Leg Wheel Compact Wheel Utility Small Storage Unit Device Seismic Detector Storage Small Storage Unit Weapon Assault Rifle Energy Gun Medium Laser Ballistic Gun Assault Rifle Ballistic Cannon Light Cannon Launcher Grenade Launcher Special Weapon Mining Laser Build | -11 -10 -10 ------- Run | Yrd Mat Sub Slots Evolved . | . . . Power . | . . . Propulsion . | . . . Utility . | . . . Weapon . | . . . Parts Attached 17 | 7 10 . Power 3 | 1 2 . Engine 2 | 1 1 . Core 1 | . 1 . Reactor . | . . . Propulsion 4 | 2 2 . Treads . | . . . Leg 3 | 2 1 . Wheel 1 | . 1 . Hover . | . . . Flight . | . . . Utility 3 | 2 1 . Device 1 | 1 . . Storage 2 | 1 1 . Processor . | . . . Hackware . | . . . Protection . | . . . Artifact . | . . . Weapon 7 | 2 5 . Energy Gun 1 | 1 . . Energy Cannon . | . . . Ballistic Gun 3 | 1 2 . Ballistic Cannon 1 | . 1 . Launcher 1 | . 1 . Special Weapon 1 | . 1 . Impact Weapon . | . . . Slashing Weapon . | . . . Piercing Weapon . | . . . Special Melee Weapon . | . . . Unidentified Prototypes . | . . . Parts Lost 9 | . 3 6 Power 1 | . . 1 Propulsion 3 | . 1 2 Utility 1 | . 1 . Weapon 4 | . 1 3 Highest Loss Streak 6 | . 2 6 To Critical Strikes . | . . . Average Backups 6 | 1 6 7 Power 1 | . 1 2 Propulsion . | . 1 . Utility 1 | . 1 3 Weapon 2 | . 2 2 Tool/Special . | . . . Unused Backups 6 | . 2 4 Power 1 | . . 1 Propulsion . | . . . Utility 5 | . 2 3 Weapon . | . . . Tool/Special . | . . . Average Slot Usage (%) 90 | . 90 78 Engine 9 | . 9 . Core 4 | . 4 9 Leg 22 | . 23 9 Wheel 3 | . 3 9 Device 3 | . 3 . Storage 17 | . 17 28 Energy Gun 3 | . 3 . Ballistic Gun 13 | . 13 11 Ballistic Cannon 10 | . 10 9 Peak Build Rating 11 | 7 11 11 Average Rating 7 | 5 7 8 On Entrance 5 | . 7 10 Naked Turns . | . . . Heaviest Build 26 | 13 26 26 Greatest Support 20 | 20 20 16 Greatest Overweight (x) 5 | . 2 5 Average Overweight (x) . | . . 1 Largest Inventory Capacity 10 | 8 10 10 Average Capacity 8 | 7 8 10 Most Carried 8 | 3 8 8 Average Carried 6 | 1 6 7 Final Capacity 10 | 8 10 10 Final Carried 8 | 3 8 7 Class Distribution -------------------- 100% | Mutant Dominant Class ---------------- Mutant | -10/Materials Mutant | -10/Subcaves Resources | -11 -10 -10 ----------- Run | Yrd Mat Sub Matter Collected 719 | 300 419 . Remotely . | . . . Salvage Created 730 | 160 493 77 Parts 54 | 11 41 2 Haulers Intercepted 1 | . 1 . Recyclers Shooed 2 | . 2 . Parts Field Recycled . | . . . Retrieved Matter . | . . . Parts Self-Destructed . | . . . Prevented . | . . . Kills | -11 -10 -10 ------- Run | Yrd Mat Sub Combat Hostiles Destroyed 12 | . 10 2 Guns 4 | . 3 1 Cannons 5 | . 5 . AOE 3 | . 2 1 Classes Destroyed 9 | 2 6 1 Builder 3 | . 3 . Tunneler 6 | 5 1 . Hauler 1 | . 1 . Recycler 3 | 1 2 . Operator 1 | . 1 . Watcher 1 | . 1 . Swarmer 2 | . 2 . Grunt 8 | . 8 . Subdweller 2 | . . 2 Best Kill Streak 5 | 5 5 2 Combat Bots Only 4 | . 4 2 Max Kills in Single Turn 2 | 1 1 2 Gunslinging . | . . . Exploded 1 | . 1 1 Melee . | . . . Uniques/NPCs Destroyed . | . . . Combat | -11 -10 -10 -------- Run | Yrd Mat Sub Hostile Shots Fired 89 | . 51 38 Missed 20 | . 12 8 Hits 69 | . 39 30 Projectile 69 | . 39 30 Damage Taken 1361 | . 711 650 Core 261 | . 109 152 Absorbed by Shields . | . . . Core Remaining (%) 100 | 100 . . Volleys Fired 91 | 10 69 12 Largest 2 | 2 2 2 Hottest 130 | 70 130 53 Shots Fired 169 | 20 132 17 Gun 107 | 20 76 11 Cannon 50 | . 45 5 Launcher 8 | . 7 1 Special 4 | . 4 . Kinetic 133 | 10 107 16 Thermal 28 | 10 18 . Explosive 8 | . 7 1 Electromagnetic . | . . . Robot Hit Streak 12 | 5 12 5 Robot Miss Streak 6 | 2 6 3 Penetration Max . | . . . Secondary Targets . | . . . Shots Hit Robots 82 | 10 60 12 Core Hits 40 | 7 29 4 Critical Kills . | . . . Critical Parts Destroyed . | . . . Critical Strikes 3 | 1 2 . Burn 2 | 1 1 . Blast 1 | . 1 . Melee Attacks . | . . . Impact . | . . . Slashing . | . . . Piercing . | . . . Sneak Attacks . | . . . Combat Hostiles . | . . . Follow-up Attacks . | . . . Damage Inflicted 1567 | 139 1088 340 Guns 685 | 139 450 96 Cannons 506 | . 431 75 Explosions 376 | . 207 169 Melee . | . . . Ramming . | . . . Kinetic 1066 | 89 806 171 Thermal 125 | 50 75 . Explosive 376 | . 207 169 Electromagnetic . | . . . Impact . | . . . Slashing . | . . . Piercing . | . . . Highest Corruption 8 | . 8 8 Average Corruption 7 | . 7 8 Corruption Purged . | . . . Corruption Blocked . | . . . Effects 12 | . 11 1 Message Errors 3 | . 3 . Matter Fused 4 | . 4 . Energy Discharges 1 | . 1 . Data Loss (minor) 2 | . 2 . Data Loss (major) 1 | . 1 . Weapon Failures 1 | . . 1 Overload Shots . | . . . Overflow Damage 40 | . 1 39 Projectiles 1 | . 1 . Explosions 39 | . . 39 Melee . | . . . Knockbacks 4 | . 3 1 Impact . | . . . Kinetic 4 | . 3 1 Secondary . | . . . Self-Inflicted Damage 78 | . 38 40 Shots 2 | . 1 1 Rammed . | . . . Targets Rammed . | . . . Kicked . | . . . Crushed . | . . . Highest Temperature 45 | 18 45 . Average Temperature 12 | 8 13 . Received Heat Transfer 318 | . 222 96 Siege Activations . | . . . Martial Activations . | . . . Shielding Activations . | . . . Robots Disrupted . | . . . Combat Hostiles . | . . . Robots Corrupted . | . . . Combat Hostiles . | . . . Parts Fried . | . . . Impact Corruptions . | . . . Robots Melted . | . . . Combat Hostiles . | . . . Parts Melted 3 | 2 1 . Heat Transferred 518 | 222 296 . Parts Sabotaged . | . . . Parts Stolen . | . . . Parts Stripped . | . . . Power Chain Reactions . | . . . Alert | -11 -10 -10 ------- Run | Yrd Mat Sub Maximum Alert Level . | . . . Low Security (%) 100 | 100 100 . Level 1 . | . . . Level 2 . | . . . Level 3 . | . . . Level 4 . | . . . Level 5 . | . . . High Security . | . . . Max Security . | . . . Peak Influence 180 | 10 180 . Initial . | . . . Average 81 | 1 93 . Influence Increases 485 | 30 455 . Destroy 0b10 Robot/C 200 | . 200 . Destroy 0b10 Robot/NC 75 | 30 45 . Destroy Leader 54 | . 54 . Successful Hack 9 | . 9 . Disable Machine 60 | . 60 . Destroy Structure 57 | . 57 . Lose Combat Pursuer 30 | . 30 . Influence Decreases 485 | 30 341 114 Entered New Map 55 | . . 55 Time Decay 351 | 30 311 10 Lost Part 79 | . 30 49 Squads Dispatched 5 | . 5 . Investigation 3 | . 3 . Extermination . | . . . Reinforcement 2 | . 2 . Assault . | . . . Garrison . | . . . Intercept . | . . . Searches Triggered . | . . . Construction Impeded . | . . . Haulers Reinforced . | . . . Active Scanning Responses . | . . . Cargo Convoy Interrupts . | . . . Stealth | -11 -10 -10 --------- Run | Yrd Mat Sub Distress Signals . | . . . Communications Jammed . | . . . Distress Signals . | . . . Times Spotted 22 | . 18 4 Peak Tracking Total 4 | . 3 4 Tactical Retreats 2 | . 2 . Traps | -11 -10 -10 ------- Run | Yrd Mat Sub Traps Triggered 2 | . 2 . Indirectly . | . . . Trap Hack Attempts . | . . . Triggered . | . . . Disarmed . | . . . Reprogrammed . | . . . Reused . | . . . Traps Extracted . | . . . Installed . | . . . Triggered . | . . . Machines | -11 -10 -10 ---------- Run | Yrd Mat Sub Machines Disabled 4 | . 4 . Max in Single Turn 2 | . 2 . Machines Repaired . | . . . Machines Dismantled . | . . . Machines Sabotaged . | . . . Overloaded Fab Kills . | . . . Hacking | -11 -10 -10 --------- Run | Yrd Mat Sub Machines Accessed 5 | . 5 . Terminals 5 | . 5 . Fabricators . | . . . Repair Stations . | . . . Recycling Units . | . . . Scanalyzers . | . . . Garrison Access . | . . . Total Hacks 14 | . 14 . Successful 5 | . 5 . Failed 9 | . 9 . Catastrophic 2 | . 2 . Database Lockouts . | . . . Manual 3 | . 3 . Terminals 14 | . 14 . Fabricators . | . . . Repair Stations . | . . . Recycling Units . | . . . Scanalyzers . | . . . Garrison Access . | . . . Terminal Hacks 5 | . 5 . Prototype ID Bank 1 | . 1 . Alert Level 1 | . 1 . Locate Traps 1 | . 1 . Zone Layout 2 | . 2 . Fabricator Hacks . | . . . Repair Station Hacks . | . . . Recycling Unit Hacks . | . . . Scanalyzer . | . . . Garrison Access Hacks . | . . . Unauthorized Hacks . | . . . Terminals . | . . . Fabricators . | . . . Repair Stations . | . . . Recycling Units . | . . . Scanalyzers . | . . . Garrison Access . | . . . Data Cores Recovered . | . . . Used . | . . . Hacking Detections 4 | . 4 . Full Trace Events 2 | . 2 . Feedback Events 1 | . 1 . Corruption 1 | . 1 . Feedback Blocked . | . . . Robot Schematics Acquired . | . . . Robots Built . | . . . Authchips . | . . . Time . | . . . Total Robot Build Rating . | . . . Part Schematics Acquired . | . . . Parts Built . | . . . Authchips . | . . . Time . | . . . Total Part Build Rating . | . . . Parts Repaired . | . . . Time . | . . . Parts Recycled . | . . . Recycled Matter . | . . . Retrieved Matter . | . . . Retrieved Components . | . . . Parts Scanalyzed . | . . . Part Schematics Acquired . | . . . Parts Damaged . | . . . Bothacking | -11 -10 -10 ------------ Run | Yrd Mat Sub Used RIF Installer . | . . . Robots Hacked . | . . . Non-combat . | . . . Combat . | . . . Robot Hacks Applied . | . . . Relay Couplers Released . | . . . Fabnet Peak Effective % . | . . . Robots Rewired . | . . . Allies Hacked . | . . . Hacks Repelled . | . . . Allies | -11 -10 -10 -------- Run | Yrd Mat Sub Total Allies . | . . . Largest Group . | . . . Highest-Rated Group . | . . . Highest-Rated Ally . | . . . Total Orders . | . . . Ally Attacks . | . . . Total Damage . | . . . Kills . | . . . Allies Corrupted . | . . . Allies Melted . | . . . Intel | -11 -10 -10 ------- Run | Yrd Mat Sub Active Infowar (turns) 300 | 71 229 . Seismic 300 | 71 229 . Robot Analysis Total . | . . . Derelict Logs Recovered . | . . . Drone Launches . | . . . Drone Recoveries . | . . . Exploration | -11 -10 -10 ------------- Run | Yrd Mat Sub Turns Passed 1169 | 146 974 49 Spaces Moved 679 | 88 578 13 Core 4 | 3 . 1 Treads . | . . . Legs 495 | 85 410 . Wheels 180 | . 168 12 Hover . | . . . Flight . | . . . Fastest Speed 50 | 50 115 115 Average Speed 123 | 117 123 129 Slowest Speed 300 | 120 260 300 Overloaded Moves . | . . . Propulsion Burnouts . | . . . Robots Hopped . | . . . Potential Cave-ins . | . . . Cave-ins Triggered 1 | . 1 . Exploration Rate (%) 29 | 4 80 4 Regions Visited 2 Branch Regions 1 Pre-discovered Areas . | . . . Known Exits Taken . | . . . Unknown Exits Taken 2 | 1 1 . Scrap Searched . | . . . Spaces Dug 4 | . 4 . Terrain Destroyed 64 | . 60 4 Melee . | . . . Projectile 4 | . 4 . AOE 60 | . 56 4 Terrain Rammed . | . . . Walls Destroyed . | . . . Machines Disabled . | . . . Actions | -11 -10 -10 --------- Run | Yrd Mat Sub Total 831 | 107 695 29 Wait 23 | . 22 1 Move 677 | 87 577 13 Hop . | . . . Pick Up 12 | 3 9 . Fast Attach 8 | 7 1 . Attach 3 | . 2 1 Detach . | . . . Swap 12 | . 10 2 Drop 5 | . 5 . Fire 91 | 10 69 12 Melee . | . . . Ram . | . . . Kick . | . . . Crush . | . . . Escape Stasis . | . . . Rewire . | . . . Trap . | . . . Miscellaneous . | . . . Route ------- -11/Scrapyard -10/Materials (discovered 5 exits: [*Mat x3] / [*Min] / [*Sub]) -10/Subcaves History --------- Turn | Location | Event 18 | -11/Scrapyard | Discovered new exit (range 16) 147 | -11/Scrapyard | Entered Materials 207 | -10/Materials | Discovered new exit (range 9) 300 | -10/Materials | Build established: Mutant 368 | -10/Materials | Discovered new exit (range 14) 471 | -10/Materials | Discovered new exit (range 9) 739 | -10/Materials | Discovered new exit (range 4) 747 | -10/Materials | Derelicts attacked the area 801 | -10/Materials | Crushed by falling debris 1087 | -10/Materials | Discovered new exit (range 3) 1121 | -10/Materials | Entered Subcaves 1131 | -10/Subcaves | Ambushed by Subdwellers from Twisted Machinery 1147 | -10/Subcaves | Core integrity fell below 50% 1164 | -10/Subcaves | Core integrity fell below 20% 1170 | -10/Subcaves | Destroyed by NX-JC5(R) with Subdweller Laser Last Messages --------------- LOCATION=UNKNOWN AMBIENT_HEAT=-10 GOAL=ESCAPE 01132_ 48-IEK(R) knocked back. 01133_ O6-E3K(R) emerges from the Twisted Machinery. 01149_ System corrupted: Autogun jammed. 01150_ Lgt. Cannon destroyed. 01154_ Aluminum Leg destroyed. 01156_ 48-IEK(R) destroyed. 01156_ Grenade Launcher destroyed. 01156_ Destroyed Grenade Launcher. 01156_ Lgt. Nuclear Core destroyed. 01156_ Destroyed Lgt. Nuclear Core. 01156_ Com. Wheel destroyed. 01156_ Destroyed Com. Wheel. 01156_ GO-JC8(R) destroyed. 01160_ O6-E3K(R) affixes Scrap Shield Fragment to Scrap Shield. 01169_ Autogun destroyed. Map ----- +----------------------------------------------------+ | ?????????????????????????????????????????????????? | | ?????????????????????????????????????????????????? | | ?????????????????????????????????????????????????? | | ?????????????????????????????????????????????????? | | ?????????????????????????????????????????????????? | | ?????????????????????????????????????????????????? | | ?????????????????????????????????????????????????? | | ?????????????????????????????????????????????????? | | ?????????????????????????????????????????????????? | | ?????????????????????????????????????????????????? | | ???????????????????????????#?????????????????????? | | ??????????????????????????## ???####?????????????? | | ??????????????????????????# ???# #?????????????? | | ??????????????????????????# ??# #?????????????? | | ??????????????????????????# ## ?????????????? | | ???????????????????????????# # ##????????????? | | ????????????????????????????? ?????????????? | | ?????????????????????????????? ###?#?????????? | | ??????????????????????????????? # ##????????? | | ????????????????????????????????# ##???????? | | ???????????????????????????????## #???????? | | ???????????????????????###???### ### #???????? | | ?????????????????"???### ##### ##???#????????? | | ?????????????????"""## # # ## #????????? | | ????????????????""""" #????????? | | ????????????????""""" @R #????????? | | ????????????????#" "" #%*%= #????????? | | ????????????????## "??# R! #????????? | | ?????????????????## %"" ### #????????? | | ??????????????????# ##??# #????????? | | ??????????????????## # #????# #????????? | | ???????????????????###% # # ????# #????????? | | ?????????????????????## ???? #????????? | | ??????????????????????# ??? #????????? | | ??????????????????????## # #??##????????? | | ???????????????????????# ### ##????????????? | | ???????????????????????# " """?? " ?????????????? | | ???????????????????????# "####???"##????????????? | | ???????????????????????" #??????????????????????? | | ??????????????????????? ???????????????????????? | | ??????????????????????? ???????????????????????? | | ???????????????????????? ????????????????????????? | | ?????????????????????????????????????????????????? | | ?????????????????????????????????????????????????? | | ?????????????????????????????????????????????????? | | ?????????????????????????????????????????????????? | | ?????????????????????????????????????????????????? | | ?????????????????????????????????????????????????? | | ?????????????????????????????????????????????????? | | ?????????????????????????????????????????????????? | +----------------------------------------------------+ Best States ------------- Heat Dissipation 25 Energy Generation 14 Energy Capacity 250 Matter Stores 300 Matter Capacity 300 Sight Range 16 Terrain Scan Density 10 Evasion (%) 55 Item Schematics ----------------- None Robot Schematics ------------------ None Fabricated ------------ Nothing Repaired ---------- Nothing Alien Tech Used ----------------- None Achievements -------------- None Challenges ------------ None Game ------ Seed SiegeChromaticBrace Manual? 0 Play Time 00:11:04 Cumulative 54.4 hours Start 2025.09.11 @ 11:10:29 End 2025.09.11 @ 11:20:45 Sessions 1 Manual Loads 0 Difficulty Rogue Special Mode None Game No. 65 Rogue 35 Adventurer 30 Explorer 0 Win Type - Total 0 Types 0/0/0/0/0/0/0/0/0/0 Lore% 26 Gallery% 31 Achievement% 28 Wizard Run 0 Options --------- Layout 1 ASCII 0 Keyboard 1 Movement Arrows Keybinds 0 Fullscreen 1 Font 24/Terminus Map View 50x35 Zoom Use 0% Tactical HUD 1 Map Filters NONE Filters NONE Steam 1 RUN: dead6097-f050-46da-b059-8d5840588fd4